Cogmind - Beta 13 @@@ ROGUE MODE // 2024.04.07 @ 15:18:43 Player: ZowhanFlame Result: Self-destructed Performance ------------- Evolutions (2) 1000 Regions Visited (4) 800 Robots Destroyed (18) 90 Value Destroyed (577) 577 Prototype IDs (0) 0 Alien Tech Used (0) 0 Bonus (-128) -128 TOTAL SCORE: 2339 Bonus ------- Follower Combat Kills 90 Friendly Fire -218 Cogmind --------- Core Integrity 535/550 Matter 271/300 Energy 31/100 System Corruption 0% Temperature Cool (0) Movement Walking (120) Location -8/Materials Parts ------- > --- POWER (1) -------- (None) > --- PROPULSION (4) --- Aluminum Leg Aluminum Leg Compact Wheel > --- UTILITY (4) ------ Medium Storage Unit Advanced Weight Redist. System ECM Suite > --- WEAPON (2) ------- Assault Rifle Flak Cannon > --- INVENTORY (10) --- Ion Engine Improved Ion Engine Sensor Array Scrap Shield Particle Gun Shock Bomb Launcher Grenade Launcher Blade Saw Peak State ------------ > --- POWER ------------ Improved Ion Engine > --- PROPULSION ------- Aluminum Leg Aluminum Leg Compact Wheel > --- UTILITY ---------- Medium Storage Unit Advanced Weight Redist. System ECM Suite > --- WEAPON ----------- Assault Rifle Flak Cannon > --- INVENTORY -------- Ion Engine Ion Engine Sensor Array Scrap Shield Particle Gun Shock Bomb Launcher Grenade Launcher Blade Saw [Rating: 15] Favorites ----------- Power Ion Engine Engine Ion Engine Propulsion Aluminum Leg Leg Aluminum Leg Wheel Compact Wheel Utility Advanced Weight Redist. System Device Advanced Weight Redist. System Storage Medium Storage Unit Weapon Shock Rifle Energy Gun Shock Rifle Ballistic Gun Assault Rifle Ballistic Cannon Flak Cannon Launcher Grenade Launcher Slashing Weapon Blade Saw Build | -11 -10 -10 -10 -8 ------- Run | Yrd Mat Min Sub Mat Slots Evolved 4 | . . . . 4 Power . | . . . . . Propulsion 2 | . . . . 2 Utility 2 | . . . . 2 Weapon . | . . . . . Parts Attached 26 | 6 . 6 10 4 Power 3 | 1 . . . 2 Engine 3 | 1 . . . 2 Core . | . . . . . Reactor . | . . . . . Propulsion 5 | 2 . . 2 1 Treads . | . . . . . Leg 4 | 2 . . 1 1 Wheel 1 | . . . 1 . Hover . | . . . . . Flight . | . . . . . Utility 4 | 1 . 2 . 1 Device 2 | . . 1 . 1 Storage 2 | 1 . 1 . . Processor . | . . . . . Hackware . | . . . . . Protection . | . . . . . Artifact . | . . . . . Weapon 14 | 2 . 4 8 . Energy Gun 2 | . . 1 1 . Energy Cannon . | . . . . . Ballistic Gun 4 | 2 . . 2 . Ballistic Cannon 3 | . . . 3 . Launcher 4 | . . 2 2 . Special Weapon . | . . . . . Impact Weapon . | . . . . . Slashing Weapon 1 | . . 1 . . Piercing Weapon . | . . . . . Special Melee Weapon . | . . . . . Unidentified Prototypes . | . . . . . Parts Lost 2 | . . . 2 . Power . | . . . . . Propulsion 1 | . . . 1 . Utility . | . . . . . Weapon 1 | . . . 1 . Highest Loss Streak 1 | . . . 1 . To Critical Strikes . | . . . . . Average Slot Usage (%) 94 | . 85 99 98 71 Engine 13 | . 14 14 14 9 Leg 25 | . 28 28 25 11 Device 12 | . . 13 14 15 Storage 13 | . 14 14 14 9 Energy Gun 9 | . . 11 12 . Ballistic Gun 8 | . 28 9 3 9 Ballistic Cannon 6 | . . . 12 9 Slashing Weapon 1 | . . 5 . . Naked Turns . | . . . . . Heaviest Build 27 | 13 13 21 24 27 Greatest Support 29 | 20 20 29 29 29 Greatest Overweight (x) 3 | 3 . . 1 1 Average Overweight (x) . | . . . . . Largest Inventory Capacity 10 | 8 8 10 10 10 Average Capacity 9 | 7 8 9 10 10 Most Carried 10 | 6 8 8 10 9 Average Carried 8 | 3 6 7 9 7 Final Capacity 10 | 8 8 10 10 10 Final Carried 9 | 6 8 8 8 9 Class Distribution -------------------- 100% | Mutant Dominant Class ---------------- Mutant | -10/Materials Mutant | -10/Mines Mutant | -10/Subcaves Mutant | -8/Materials Resources | -11 -10 -10 -10 -8 ----------- Run | Yrd Mat Min Sub Mat Matter Collected 743 | 262 . 65 318 98 Remotely . | . . . . . Salvage Created 570 | . . 21 454 95 Parts 30 | . . 2 23 5 Haulers Intercepted . | . . . . . Recyclers Shooed 1 | 1 . . . . Parts Field Recycled . | . . . . . Retrieved Matter . | . . . . . Parts Self-Destructed 11 | . . . 11 . Prevented 1 | . . . 1 . Kills | -11 -10 -10 -10 -8 ------- Run | Yrd Mat Min Sub Mat Combat Hostiles Destroyed 17 | . . 3 12 2 Guns 3 | . . . 2 1 Cannons 6 | . . . 5 1 AOE 8 | . . 3 5 . Classes Destroyed 4 | . . 1 3 . Swarmer 4 | . . 3 1 . Grunt 2 | . . . 1 1 Sentry 2 | . . . 1 1 Subdweller 10 | . . . 10 . Best Kill Streak 6 | . . 3 6 2 Combat Bots Only 6 | . . 3 6 2 Max Kills in Single Turn 3 | . . 3 2 1 Gunslinging . | . . . . . Exploded 3 | . . 3 2 . Melee . | . . . . . Uniques/NPCs Destroyed . | . . . . . Combat | -11 -10 -10 -10 -8 -------- Run | Yrd Mat Min Sub Mat Hostile Shots Fired 49 | . . 6 39 4 Missed 14 | . . 3 10 1 Damage Taken 630 | . . 34 547 49 Core 183 | . . 9 159 15 Absorbed by Shields . | . . . . . Core Remaining (%) 66 | 100 . . 32 . Volleys Fired 41 | 1 . 1 35 4 Largest 2 | 1 . 1 2 2 Hottest 94 | 20 . 30 94 64 Shots Fired 79 | 1 . 2 68 8 Gun 47 | 1 . . 42 4 Cannon 25 | . . . 21 4 Launcher 7 | . . 2 5 . Special . | . . . . . Kinetic 43 | 1 . . 34 8 Thermal . | . . . . . Explosive 7 | . . 2 5 . Electromagnetic 29 | . . . 29 . Robot Hit Streak 8 | 1 . . 8 3 Robot Miss Streak 4 | . . 1 4 4 Penetration Max . | . . . . . Secondary Targets . | . . . . . Shots Hit Robots 51 | 1 . . 44 6 Core Hits 46 | . . 3 36 7 Critical Kills . | . . . . . Critical Parts Destroyed . | . . . . . Critical Strikes . | . . . . . Melee Attacks 6 | . . 6 . . Impact . | . . . . . Slashing 6 | . . 6 . . Piercing . | . . . . . Sneak Attacks . | . . . . . Combat Hostiles . | . . . . . Follow-up Attacks . | . . . . . Damage Inflicted 1542 | 14 . 96 1341 91 Guns 383 | 14 . . 329 40 Cannons 452 | . . . 401 51 Explosions 705 | . . 94 611 . Melee . | . . . . . Ramming 2 | . . 2 . . Kinetic 608 | 14 . . 503 91 Thermal 47 | . . . 47 . Explosive 658 | . . 94 564 . Electromagnetic 227 | . . . 227 . Impact . | . . . . . Slashing . | . . . . . Piercing . | . . . . . Highest Corruption 3 | . 3 3 3 . Average Corruption 2 | . 2 3 3 . Corruption Purged . | . . . . . Corruption Blocked . | . . . . . Effects 25 | . 2 9 14 . Message Errors 5 | . . 1 4 . Matter Fused 5 | . . 3 2 . Heat Flow Errors 5 | . . 3 2 . Energy Discharges 2 | . 1 . 1 . Parts Rejected 1 | . . . 1 . Data Loss (minor) 5 | . 1 1 3 . Misfires 2 | . . 1 1 . Overload Shots . | . . . . . Overflow Damage . | . . . . . Projectiles . | . . . . . Explosions . | . . . . . Melee . | . . . . . Knockbacks 13 | . . . 13 . Impact . | . . . . . Kinetic 12 | . . . 12 . Secondary 1 | . . . 1 . Self-Inflicted Damage 53 | . . . 53 . Shots 4 | . . . 4 . Rammed . | . . . . . Targets Rammed 1 | . . 1 . . Kicked 1 | . . 1 . . Crushed . | . . . . . Highest Temperature 266 | . . 266 81 4 Average Temperature 104 | . . 118 46 4 Received Heat Transfer 114 | . . . 96 18 Effects 1 | . . 1 . . Energy Bleed 1 | . . 1 . . Siege Activations . | . . . . . Robots Corrupted . | . . . . . Combat Hostiles . | . . . . . Parts Fried 1 | . . . 1 . Impact Corruptions . | . . . . . Robots Melted . | . . . . . Combat Hostiles . | . . . . . Parts Melted . | . . . . . Heat Transferred . | . . . . . Parts Sabotaged . | . . . . . Parts Stolen . | . . . . . Parts Stripped . | . . . . . Power Chain Reactions 1 | . . . 1 . Alert | -11 -10 -10 -10 -8 ------- Run | Yrd Mat Min Sub Mat Peak Influence 115 | . . 81 . 115 Initial 65 | . . . . 65 Average 44 | . . 58 . 75 Maximum Alert Level . | . . . . . Low Security (%) 100 | 100 100 100 . 100 Level 1 . | . . . . . Level 2 . | . . . . . Level 3 . | . . . . . Level 4 . | . . . . . Level 5 . | . . . . . High Security . | . . . . . Max Security . | . . . . . Squads Dispatched 1 | . . . . 1 Investigation . | . . . . . Extermination . | . . . . . Reinforcement 1 | . . . . 1 Assault . | . . . . . Garrison . | . . . . . Intercept . | . . . . . Searches Triggered . | . . . . . Construction Impeded . | . . . . . Haulers Reinforced . | . . . . . Active Scanning Responses . | . . . . . Cargo Convoy Interrupts . | . . . . . Stealth | -11 -10 -10 -10 -8 --------- Run | Yrd Mat Min Sub Mat Distress Signals 1 | . . . . 1 Communications Jammed . | . . . . . Distress Signals . | . . . . . Times Spotted 33 | . . 3 25 5 Peak Tracking Total 5 | . . 3 5 3 Tactical Retreats 6 | . . . 3 3 Traps | -11 -10 -10 -10 -8 ------- Run | Yrd Mat Min Sub Mat Traps Triggered 2 | . 2 . . . Indirectly . | . . . . . Trap Hack Attempts . | . . . . . Triggered . | . . . . . Disarmed . | . . . . . Reprogrammed . | . . . . . Reused . | . . . . . Traps Extracted . | . . . . . Installed . | . . . . . Triggered . | . . . . . Machines | -11 -10 -10 -10 -8 ---------- Run | Yrd Mat Min Sub Mat Machines Disabled . | . . . . . Max in Single Turn . | . . . . . Machines Repaired . | . . . . . Machines Dismantled . | . . . . . Machines Sabotaged . | . . . . . Overloaded Fab Kills . | . . . . . Hacking | -11 -10 -10 -10 -8 --------- Run | Yrd Mat Min Sub Mat Machines Accessed 1 | . . 1 . . Terminals . | . . . . . Fabricators . | . . . . . Repair Stations . | . . . . . Recycling Units . | . . . . . Scanalyzers . | . . . . . Garrison Access . | . . . . . Total Hacks 1 | . . 1 . . Successful 1 | . . 1 . . Failed . | . . . . . Catastrophic . | . . . . . Database Lockouts . | . . . . . Manual . | . . . . . Terminals . | . . . . . Fabricators . | . . . . . Repair Stations . | . . . . . Recycling Units . | . . . . . Scanalyzers . | . . . . . Garrison Access . | . . . . . Terminal Hacks 1 | . . 1 . . Open Door 1 | . . 1 . . Fabricator Hacks . | . . . . . Repair Station Hacks . | . . . . . Recycling Unit Hacks . | . . . . . Scanalyzer . | . . . . . Garrison Access Hacks . | . . . . . Unauthorized Hacks . | . . . . . Terminals . | . . . . . Fabricators . | . . . . . Repair Stations . | . . . . . Recycling Units . | . . . . . Scanalyzers . | . . . . . Garrison Access . | . . . . . Data Cores Recovered . | . . . . . Used . | . . . . . Hacking Detections . | . . . . . Full Trace Events . | . . . . . Feedback Events . | . . . . . Feedback Blocked . | . . . . . Robot Schematics Acquired . | . . . . . Robots Built . | . . . . . Authchips . | . . . . . Time . | . . . . . Total Robot Build Rating . | . . . . . Part Schematics Acquired . | . . . . . Parts Built . | . . . . . Authchips . | . . . . . Time . | . . . . . Total Part Build Rating . | . . . . . Parts Repaired . | . . . . . Time . | . . . . . Parts Recycled . | . . . . . Recycled Matter . | . . . . . Retrieved Matter . | . . . . . Retrieved Components . | . . . . . Parts Scanalyzed . | . . . . . Part Schematics Acquired . | . . . . . Parts Damaged . | . . . . . Bothacking | -11 -10 -10 -10 -8 ------------ Run | Yrd Mat Min Sub Mat Used RIF Installer . | . . . . . Robots Hacked . | . . . . . Non-combat . | . . . . . Combat . | . . . . . Robot Hacks Applied . | . . . . . Relay Couplers Released . | . . . . . Fabnet Peak Effective % . | . . . . . Robots Rewired . | . . . . . Allies Hacked . | . . . . . Hacks Repelled . | . . . . . Allies | -11 -10 -10 -10 -8 -------- Run | Yrd Mat Min Sub Mat Total Allies 5 | . . 5 . . Largest Group 5 | . . 5 4 . Highest-Rated Group 82 | . . 82 71 . Highest-Rated Ally 31 | . . 31 31 . Total Orders . | . . . . . Ally Attacks 21 | . . . 21 . Total Damage 287 | . . . 287 . Kills 3 | . . . 3 . Allies Corrupted . | . . . . . Allies Melted . | . . . . . Intel | -11 -10 -10 -10 -8 ------- Run | Yrd Mat Min Sub Mat Robot Analysis Total . | . . . . . Derelict Logs Recovered 1 | . . 1 . . Drone Launches . | . . . . . Drone Recoveries . | . . . . . Exploration | -11 -10 -10 -10 -8 ------------- Run | Yrd Mat Min Sub Mat Turns Passed 1584 | 66 168 466 767 117 Spaces Moved 971 | 42 132 232 513 52 Core 7 | 7 . . . . Treads . | . . . . . Legs 896 | 35 132 232 489 8 Wheels 68 | . . . 24 44 Hover . | . . . . . Flight . | . . . . . Fastest Speed 50 | 50 120 120 100 100 Average Speed 120 | 119 120 120 123 105 Slowest Speed 200 | 200 120 120 190 190 Overloaded Moves . | . . . . . Propulsion Burnouts . | . . . . . Robots Hopped . | . . . . . Cave-ins Triggered . | . . . . . Exploration Rate (%) 24 | 4 21 55 38 4 Regions Visited 4 Branch Regions 2 Pre-discovered Areas . | . . . . . Known Exits Taken 1 | . . 1 . . Unknown Exits Taken 3 | 1 1 . 1 . Scrap Searched 6 | . . 2 4 . Spaces Dug . | . . . . . Terrain Destroyed 54 | . . 11 43 . Melee . | . . . . . Projectile . | . . . . . AOE 54 | . . 11 43 . Terrain Rammed . | . . . . . Walls Destroyed . | . . . . . Machines Disabled . | . . . . . Actions | -11 -10 -10 -10 -8 --------- Run | Yrd Mat Min Sub Mat Total 1286 | 54 141 407 580 104 Wait 215 | . 8 151 14 42 Move 967 | 41 131 231 512 52 Hop . | . . . . . Pick Up 19 | 6 2 5 5 1 Fast Attach 8 | 6 . 1 . 1 Attach 4 | . . . 3 1 Detach . | . . . . . Swap 14 | . . 5 7 2 Drop 11 | . . 6 4 1 Fire 41 | 1 . 1 35 4 Melee 6 | . . 6 . . Ram . | . . . . . Kick 1 | . . 1 . . Crush . | . . . . . Escape Stasis . | . . . . . Rewire . | . . . . . Trap . | . . . . . Miscellaneous . | . . . . . Route ------- -11/Scrapyard -10/Materials -10/Mines -10/Subcaves -8/Materials History --------- Turn | Location | Event 13 | -11/Scrapyard | Discovered new exit (range 15) 67 | -11/Scrapyard | Entered Materials 67 | -10/Materials | Discovered new exit (range 15) 235 | -10/Materials | Entered Mines 240 | -10/Mines | Met a Derelict who couldn't figure out how to use a Trap Extractor 335 | -10/Mines | Build established: Mutant 371 | -10/Mines | Identified exit to Subcaves 375 | -10/Mines | Assisted by bots powering up and referring to "LRC-V3" 701 | -10/Mines | Entered Subcaves 701 | -10/Subcaves | Accompanied by 4 allies 706 | -10/Subcaves | Led the pair of lost Derelicts to an unsafe place 771 | -10/Subcaves | Ambushed by swarm of Subdwellers 779 | -10/Subcaves | Ambushed by Subdwellers from Twisted Machinery 786 | -10/Subcaves | Ambushed by Subdweller buried in earth 794 | -10/Subcaves | Ambushed by Subdweller buried in earth 794 | -10/Subcaves | Ambushed by Subdweller buried in earth 825 | -10/Subcaves | Lost 4 allies 1062 | -10/Subcaves | A swath of the cavern ceiling suddenly collapsed 1225 | -10/Subcaves | Core integrity fell below 50% 1441 | -10/Subcaves | Discovered new exit (range 6) 1468 | -10/Subcaves | Entered Materials 1468 | -8/Materials | Evolved 4 slots: Propulsion x2, Utility x2 1585 | -8/Materials | Self-destructed Last Messages --------------- 01416_ System corrupted: Energy discharge (-30). 01436_ Acquired 9 matter. 01441_ EXIT=FOUND PARAMETERS=PROPULSION+2,UTILITY+2 LOCATION=UNKNOWN GOAL=ESCAPE 01478_ O-16 Technician: "IFF HANDSHAKE FAILED. SECURING TERMINAL." 01482_ ALERT: Hostiles spotted, dispatching reinforcements to Terminal M011. 01552_ G-47 Trooper destroyed. 01556_ Acquired Aluminum Leg. 01558_ Acquired 50 matter. 01562_ Matter Filter disabled. 01565_ Y-45 Defender destroyed. 01570_ Acquired Particle Gun. 01571_ Acquired 3 matter. 01576_ Acquired 45 matter. 01579_ Dropped Ion Engine. 01581_ R-06 Scavenger collects Ion Engine. 01584_ R-06 Scavenger collects Lgt. Armor Plating. Map ----- +----------------------------------------------------+ | ??????????????????????????????????????????? | | ??????????????????????????????????????????? | | ??????????????????????????????????????????? | | ??????????????????????????????????????????? | | ??????????????????????????????????????????? | | ??????????????????????????????????????????? | | ??????????????????????????????????????????? | | ??????????????????????????????????????????? | | ??????????????????????????????????????????? | | ??????????????????????????????????????????? | | ??????????????????????????????????????????? | | ??????????????????????????????????????????? | | ??????????????????????????????????????????? | | ??????????????????????????????????????????? | | ??????????????????????????????????????????? | | ??????????????????????????????????????????? | | ??????????????????????????????????????????? | | ??????????????????????????????????????????? | | ??????????????????????????????????????????? | | ????????????## ??????????????????????????? | | ???????????## ###+###########?????????? | | ?????????? T #?????????? | | ???????????? "" #?????????? | | ???????? #?????????? | | ?????????#### ########r######?????????? | | ????????????####?????# @ #??????????? | | ?????????????????????# [ #??????????? | | ?????????????????????# """""" #??????????? | | ?????????????????????# """"""" #??????????? | | ?????????????????????# """"""" #??????????? | | ?????????????????????#a""""""" #??????????? | | ?????????????????????# """"""" #??????????? | | ?????????????????????# #??????????? | | ?????????????????????###+#######??????????? | | ???????????????????????# #????????????????? | | ???????????????????????# #????????????????? | | ???????????????????????# #????????????????? | | ??????????????????????? ????????????????? | | ??????????????????????? ????????????????? | | ??????????????????????? ????????????????? | | ??????????????????????? ????????????????? | | ??????????????????????? ????????????????? | | ??????????????????????? ????????????????? | | ?????????????????????? ???????????????? | | ?????????????????????? ???????????????? | | ?????????????????????? ???????????????? | | ?????????????????????? ???????????????? | | ??????????????????????" ???????????????? | | ??????????????????????? ???????????????? | | ??????????????????????????????????????????? | +----------------------------------------------------+ Best States ------------- Heat Dissipation 31 Energy Generation 10 Energy Capacity 250 Matter Stores 300 Matter Capacity 300 Sight Range 16 Terrain Scan Density 10 ECM Strength 1 Additional Mass Support 9 Evasion (%) 55 Item Schematics ----------------- None Robot Schematics ------------------ None Fabricated ------------ Nothing Alien Tech Used ----------------- None Achievements -------------- Backstab Maybe Next Time I'll Detach My Launcher Challenges ------------ None Game ------ Seed MissilePointStabilizer Manual? 0 Play Time 00:25:00 Cumulative 13.5 hours Start 2024.04.07 @ 14:54:49 End 2024.04.07 @ 15:18:43 Sessions 1 Manual Loads 0 Difficulty Rogue Special Mode None Game No. 11 Rogue 11 Adventurer 0 Explorer 0 Win Type - Total 0 Types 0/0/0/0/0/0/0/0/0 Lore% 8 Gallery% 19 Achievement% 16 Wizard Run 0 Options --------- Layout 0 ASCII 0 Keyboard 1 Movement Numpad Keybinds 0 Fullscreen 2 Font 24/Smallcaps Map View 76x50 Zoom Use 0% Tactical HUD 1 Map Filters NONE Filters NONE Steam 1 RUN: 800b1904-d5f9-41a7-80eb-e9250eb0ae99